[Event "42nd GRE-ch Women 2019"]
[Site "Thessaloniki"]
[Date "2019.11.23"]
[Round "4.5"]
[White "Makka, Evanthia"]
[Black "Vozinaki, Anthi - Maria"]
[Result "1-0"]
[ECO "A04"]
[WhiteElo "2059"]
[BlackElo "1878"]
[Annotator "NA"]
[PlyCount "59"]
[EventDate "2019.11.20"]
[EventType "tourn"]
[EventCountry "GRE"]
[SourceTitle "playchess.com"]
[Source "ChessBase"]
[SourceQuality "1"]
[TimeControl "40/5400+30:1800+30"]

1. Nf3 {[%emt 0:00:00]} c5 {[%emt 0:00:00]} 2. g3 {[%emt 0:00:00]} Nf6 {[%emt 0:00:21]} 3. Bg2 {[%emt 0:00:35]} Nc6 {[%emt 0:00:40]} 4. O-O {[%emt 0:03:03]} d5 {[%emt 0:00:29]} 5. d4 {[%emt 0:00:29]} cxd4 {[%emt 0:08:38]} 6. Nxd4 {[%emt 0:00:09]} e5 {[%emt 0:00:43]} 7. Nxc6 {[%emt 0:02:56]} bxc6 {[%emt 0:00:07]} 8. c4 {[%emt 0:01:03]} Be7 {[%emt 0:13:23]} 9. Nc3 {[%emt 0:09:58]} Bb7 {[%emt 0:13:32]} 10. cxd5 {[%emt 0:03:55]} Nxd5 {[%emt 0:05:55]} 11. Qb3 {[%emt 0:08:22]} Nxc3 {[%emt 0:11:22]} 12. Qxc3 {[%emt 0:03:53]} Qc7 {[%emt 0:01:06]} 13. Be3 {[%emt 0:00:42]} O-O {[%emt 0:01:20]} 14. Rac1 {[%emt 0:02:07]} Rfc8 {[%emt 0:01:48]} 15. b4 {[%emt 0:03:17]} a5 {[%emt 0:13:44]} 16. b5 {[%emt 0:02:02]} c5 {[%emt 0:01:18]} 17. Bxb7 {[%emt 0:00:28]} Qxb7 {[%emt 0:00:04]} 18. a4 {[%emt 0:00:25]} Qe4 {[%emt 0:04:45]} 19. Qc4 {[%emt 0:01:14]} Qg6 {[%emt 0:07:28]} 20. Qd5 {[%emt 0:04:35]} Qg4 {[%emt 0:03:04]} 21. Qxe5 {[%emt 0:06:51]} Bf6 {[%emt 0:01:41]} 22. Qf4 {[%emt 0:00:50]} Qxe2 {[%emt 0:01:53]} 23. Rxc5 {[%emt 0:01:37]} Rxc5 {[%emt 0:00:22]} 24. Bxc5 {[%emt 0:00:08]} Be5 {[%emt 0:00:56]} 25. Qe3 {[%emt 0:00:11]} Qb2 {[%emt 0:02:57]} 26. Re1 {[%emt 0:04:49]} Re8 {[%emt 0:02:11]} 27. Bd4 {[%emt 0:02:09]} Qb4 {[%emt 0:00:46]} 28. Bxe5 {[%emt 0:00:55]} f6 {[%emt 0:00:37]} 29. Bc3 {[%emt 0:00:47]} Rxe3 {[%emt 0:00:19]} 30. Bxb4 {[%emt 0:00:07]} 1-0

[Event "42nd GRE-ch Women 2019"]
[Site "Thessaloniki"]
[Date "2019.11.24"]
[Round "5.1"]
[White "Vozinaki, Anthi - Maria"]
[Black "Hristodoulaki, Antonia"]
[Result "0-1"]
[ECO "C11"]
[WhiteElo "1878"]
[BlackElo "2054"]
[Annotator "NA RC"]
[PlyCount "117"]
[EventDate "2019.11.20"]
[EventType "tourn"]
[EventCountry "GRE"]
[SourceTitle "playchess.com"]
[Source "ChessBase"]
[SourceQuality "1"]
[TimeControl "40/5400+30:1800+30"]

1. e4 {[%emt 0:00:00]} e6 {[%emt 0:01:53]} 2. d4 {[%emt 0:00:00]} d5 {[%emt 0:00:08]} 3. Nc3 {[%emt 0:00:00]} Nf6 {[%emt 0:00:06]} 4. Bg5 {[%emt 0:00:00]} dxe4 {[%emt 0:00:06]} 5. Nxe4 {[%emt 0:00:00]} Be7 {[%emt 0:00:05]} 6. Bxf6 {[%emt 0:00:07]} gxf6 {[%emt 0:00:06]} 7. Nf3 {[%emt 0:00:07]} f5 {[%emt 0:00:05]} 8. Nc3 {[%emt 0:00:04]} a6 {[%emt 0:00:03] C13: French: Classical System: 4 Bg5 Be7, Alekhine-Chatard Attack} 9. Qe2 {[%emt 0:00:29]} (9. Qd2 b5 10. O-O-O b4 11. Na4 Qd5 12. b3 Bd7 13. Bc4 Qd6 14. d5 e5 15. Rhe1 e4 16. Nd4 {1-0 (40) Carlsen,M (2832)-Grischuk,A (2750) chess.com INT 2017}) 9... b5 {[%emt 0:01:23]} 10. O-O-O {[%emt 0:00:16]} b4 {[%emt 0:18:10]} 11. Na4 {[%emt 0:00:22]} Qd5 {[%emt 0:01:11]} 12. b3 {[%emt 0:00:43]} Bb7 {[%emt 0:18:04]} 13. Qe3 {[%emt 0:16:59]} Nd7 {[%emt 0:02:42]} 14. Bc4 {[%emt 0:07:52]} Qe4 {[%emt 0:02:00]} 15. Qd2 {[%emt 0:03:06]} O-O-O {[%emt 0:08:19]} 16. h3 {[%emt 0:10:53] [#]} Bd6 $146 {[%emt 0:11:09]} 17. Kb1 {[%emt 0:17:15]} Qf4 {[%emt 0:01:49]} 18. Qe2 {[%emt 0:03:20]} Nb8 {[%emt 0:10:59]} 19. d5 {[%emt 0:15:28]} exd5 {[%emt 0:01:07]} 20. Rd4 {[%emt 0:03:46]} Rhe8 {[%emt 0:02:39]} 21. Rxf4 {[%emt 0:03:43]} Rxe2 {[%emt 0:00:20]} 22. Bxe2 {[%emt 0:00:34]} Bxf4 {[%emt 0:00:02]} 23. Bd3 {[%emt 0:01:05]} Rh8 {[%emt 0:02:30]} 24. Nc5 {[%emt 0:02:28]} Nc6 {[%emt 0:06:32]} 25. Bxf5+ {[%emt 0:03:07]} Kb8 {[%emt 0:00:06]} 26. Re1 {[%emt 0:04:41]} Ka7 {[%emt 0:02:15]} 27. g3 {[%emt 0:01:23]} Bh6 {[%emt 0:00:55]} 28. Bd7 {[%emt 0:03:41]} Rd8 {[%emt 0:01:02]} ({Black should play} 28... Nd8 $14) 29. Be8 {[%emt 0:01:00]} Bc8 $2 {[%emt 0:06:28]} (29... Bg7 $16) 30. Bxf7 {[%emt 0:01:47]} Kb6 {[%emt 0:01:17]} 31. Ne6 {[%emt 0:00:38]} Rd6 {[%emt 0:00:55]} 32. Nfg5 {[%emt 0:00:29]} Nd4 {[%emt 0:00:58]} (32... Bxg5 $11 33. Nxg5 Nd8) 33. Nxd4 {[%emt 0:00:24]} Bxg5 {[%emt 0:00:01]} 34. Be6 {[%emt 0:00:31]} Bb7 {[%emt 0:01:02]} 35. Nf5 {[%emt 0:00:25]} Rd8 {[%emt 0:00:18]} 36. f4 {[%emt 0:00:13]} Bf6 {[%emt 0:00:05]} 37. Re3 {[%emt 0:00:47]} (37. Bd7 $16) 37... Bc3 {[%emt 0:00:59]} 38. g4 {[%emt 0:00:29]} d4 {[%emt 0:00:37]} 39. Rg3 $2 {[%emt 0:00:36] [#]} (39. Re2 $11 {and White is okay.}) 39... Re8 $1 {[%emt 0:00:27]} 40. Nxd4 {[%emt 0:00:00]} (40. Ng7 {was the only chance.} Re7 41. f5 Rxg7 42. a4) 40... Bxd4 {[%emt 0:00:00]} 41. f5 $19 {[%emt 0:00:57]} Bc8 {[%emt 0:05:08]} 42. c3 {[%emt 0:04:34]} Bxc3 {[%emt 0:01:36]} 43. Bxc8 {[%emt 0:00:19]} Rxc8 {[%emt 0:00:23]} 44. g5 {[%emt 0:00:20]} Kc6 {[%emt 0:03:42]} 45. f6 {[%emt 0:01:22]} Rg8 {[%emt 0:02:00]} 46. Rf3 {[%emt 0:03:43]} Kd5 {[%emt 0:02:35]} 47. h4 {[%emt 0:01:07]} Ke6 {[%emt 0:01:06]} 48. Re3+ {[%emt 0:00:54]} Be5 {[%emt 0:00:47]} 49. Re4 {[%emt 0:00:35]} a5 50. Rc4 {[%emt 0:00:20]} Bd6 {[%emt 0:00:28]} 51. Re4+ {[%emt 0:00:37]} Kf7 {[%emt 0:00:14]} 52. Kc2 {[%emt 0:00:12]} Re8 {[%emt 0:02:32]} 53. Rg4 {[%emt 0:00:49]} h6 {[%emt 0:02:29]} 54. Kd3 {[%emt 0:00:50]} hxg5 {[%emt 0:00:32]} 55. hxg5 {[%emt 0:00:06]} Kg6 {[%emt 0:00:17]} 56. Rg2 {[%emt 0:00:23]} Re5 {[%emt 0:00:34]} 57. Rf2 {[%emt 0:00:41]} Rxg5 {[%emt 0:00:23]} 58. f7 {[%emt 0:00:11]} Rf5 {[%emt 0:00:25]} 59. Kd4 0-1

[Event "42nd GRE-ch Women 2019"]
[Site "Thessaloniki"]
[Date "2019.11.24"]
[Round "5.4"]
[White "Koutsidi, Amalia"]
[Black "Makka, Ioulia"]
[Result "1/2-1/2"]
[ECO "B11"]
[WhiteElo "1724"]
[BlackElo "2048"]
[Annotator "NA RC"]
[PlyCount "111"]
[EventDate "2019.11.20"]
[EventType "tourn"]
[EventCountry "GRE"]
[SourceTitle "playchess.com"]
[Source "ChessBase"]
[SourceQuality "1"]
[TimeControl "40/5400+30:1800+30"]

{[%evp 45,111,-8,32767,32767,30,7,74,51,32767,70,70,5,39,36,27,-5,63,55,55,50,32767,32767,32767,32767,132,118,32767,125,127,165,158,152,168,175,187,191,177,218,32767,32767,32767,32767,32767,32767,102,91,79,37,40,40,37,40,41,37,41,40,37,0,37,23,41,40,37,49,35,41,37,0]} 1. e4 {[%emt 0:00:00]} c6 {[%emt 0:00:02]} 2. Nc3 {[%emt 0:00:00]} d5 {[%emt 0:00:47]} 3. Nf3 {[%emt 0:00:00]} Bg4 {[%emt 0:00:00]} 4. h3 {[%emt 0:00:00]} Bxf3 {[%emt 0:00:00]} 5. Qxf3 {[%emt 0:00:01]} e6 {[%emt 0:01:17]} 6. d4 {[%emt 0:00:14]} Nf6 {[%emt 0:00:42]} 7. Bd3 {[%emt 0:00:32]} dxe4 {[%emt 0:03:44]} 8. Nxe4 {[%emt 0:00:09]} Nxe4 {[%emt 0:00:47] B11: Caro-Kann: Two Knights Variation} 9. Qxe4 {[%emt 0:03:02]} Nd7 {[%emt 0:00:34]} 10. c3 {[%emt 0:07:24]} Nf6 {[%emt 0:01:57]} 11. Qh4 {[%emt 0:03:51]} Bd6 {[%emt 0:03:28]} 12. O-O {[%emt 0:06:46]} h6 {[%emt 0:02:48]} 13. Bg5 $146 {[%emt 0:07:54]} ({Predecessor:} 13. Re1 Ke7 14. f4 g5 15. fxg5 hxg5 16. Qxg5 {1-0 (78) Hracek,Z (2625)-Kallai,G (2500) Berlin 1996}) 13... Kd7 {[%emt 0:08:14]} 14. Bxf6 {[%emt 0:02:30]} Qxf6 {[%emt 0:11:57]} 15. Qe4 {[%emt 0:11:15]} g5 {[%emt 0:03:21]} 16. c4 {[%emt 0:05:01]} Qf4 {[%emt 0:04:19]} 17. g3 {[%emt 0:09:41]} Qxe4 {[%emt 0:01:14]} 18. Bxe4 {[%emt 0:00:06]} f5 {[%emt 0:01:36]} 19. Bf3 {[%emt 0:01:58]} h5 {[%emt 0:02:05]} 20. Rad1 {[%emt 0:05:23]} Rh6 {[%emt 0:18:25]} 21. Kg2 {[%emt 0:03:57]} Kc7 {[%emt 0:09:04]} 22. c5 {[%emt 0:14:33]} Be7 {[%emt 0:00:35]} 23. Be2 {[%emt 0:02:23]} h4 {[%emt 0:13:19]} 24. g4 {[%emt 0:00:51]} f4 {[%emt 0:01:59]} 25. Bc4 {[%emt 0:02:01]} Bf8 {[%emt 0:02:43]} (25... b5 $11 {remains equal.} 26. Bb3 Re8) 26. Rfe1 {[%emt 0:00:29]} Rd8 {[%emt 0:05:37]} 27. Re5 {[%emt 0:08:23]} Bg7 {[%emt 0:00:18]} 28. Re4 {[%emt 0:00:41]} ({White should play} 28. Rxg5 $16 Bxd4 29. b4) 28... e5 {[%emt 0:00:52]} 29. d5 {[%emt 0:00:38]} cxd5 {[%emt 0:00:18]} 30. Rxd5 {[%emt 0:00:48]} Rxd5 {[%emt 0:01:04]} ({Black should try} 30... Rhh8 $11) 31. Bxd5 {[%emt 0:00:06]} Rh8 {[%emt 0:01:04]} 32. Rb4 {[%emt 0:01:28]} Rb8 {[%emt 0:00:13]} 33. Kf3 {[%emt 0:01:44]} Bf8 {[%emt 0:00:26]} 34. Rc4 {[%emt 0:00:38]} Re8 {[%emt 0:01:20]} 35. Ke4 {[%emt 0:00:32]} a5 {[%emt 0:00:30]} 36. Kf5 {[%emt 0:01:20]} Be7 {[%emt 0:00:34]} 37. f3 {[%emt 0:00:51]} ({Don't do} 37. Kxe5 $6 Bd8+ 38. Be6 Kc6 $14) 37... Rf8+ {[%emt 0:00:38]} 38. Ke4 {[%emt 0:01:08]} Bf6 {[%emt 0:00:31]} 39. b3 {[%emt 0:00:16]} Rd8 {[%emt 0:00:32]} 40. Rc2 {[%emt 0:00:00]} Bg7 {[%emt 0:00:00] [#]} 41. a3 $1 {[%emt 0:09:15]} Bf6 {[%emt 0:16:51]} 42. b4 {[%emt 0:02:25]} axb4 {[%emt 0:00:38]} 43. axb4 {[%emt 0:00:06]} Ra8 {[%emt 0:01:02]} 44. Ra2 {[%emt 0:13:24]} Rxa2 {[%emt 0:01:19]} 45. Bxa2 {[%emt 0:00:05]} b6 {[%emt 0:03:44]} 46. cxb6+ {[%emt 0:01:09]} ({White should play} 46. Kf5 $16 Bd8 47. Bd5 (47. Kxe5 bxc5 48. b5 Kb6 $11)) 46... Kxb6 {[%emt 0:00:07]} 47. Bc4 {[%emt 0:00:10]} Kc6 {[%emt 0:01:09]} 48. Kf5 {[%emt 0:01:14]} Bd8 {[%emt 0:01:31]} 49. Kxe5 {[%emt 0:00:26]} Be7 {[%emt 0:00:29]} 50. Ke6 {[%emt 0:01:04]} Bd8 $1 {[%emt 0:00:10]} 51. Ke5 {[%emt 0:02:10]} Be7 {[%emt 0:00:32]} 52. b5+ {[%emt 0:01:19]} Kc7 {[%emt 0:02:13]} 53. Ke6 {[%emt 0:00:33]} Bd8 $1 {[%emt 0:00:11]} 54. Bd3 {[%emt 0:00:15]} Kb6 {[%emt 0:00:27]} 55. Kd7 {[%emt 0:00:30]} Bf6 $14 {[%emt 0:00:25]} 56. Ke6 {[%emt 0:01:10]} 1/2-1/2

[Event "42nd GRE-ch Women 2019"]
[Site "Thessaloniki"]
[Date "2019.11.24"]
[Round "5.5"]
[White "Markantonaki, Haritomeni"]
[Black "Serefidou, Despina"]
[Result "1-0"]
[ECO "B90"]
[WhiteElo "2178"]
[BlackElo "1899"]
[Annotator "ChessBase"]
[PlyCount "55"]
[EventDate "2019.11.20"]
[EventType "tourn"]
[EventCountry "GRE"]
[SourceTitle "playchess.com"]
[Source "ChessBase"]
[SourceQuality "1"]
[TimeControl "40/5400+30:1800+30"]

1. e4 {[%emt 0:00:00]} c5 {[%emt 0:00:00]} 2. Nf3 {[%emt 0:00:00]} d6 {[%emt 0:00:25]} 3. d4 {[%emt 0:00:00]} cxd4 {[%emt 0:00:00]} 4. Nxd4 {[%emt 0:00:00]} Nf6 {[%emt 0:00:00]} 5. Nc3 {[%emt 0:00:00]} a6 {[%emt 0:00:15]} 6. Be3 {[%emt 0:00:48]} e5 {[%emt 0:00:00]} 7. Nb3 {[%emt 0:00:18]} Be6 {[%emt 0:00:26]} 8. h3 {[%emt 0:00:43]} h5 {[%emt 0:07:55]} 9. Qd2 {[%emt 0:05:23]} Nbd7 {[%emt 0:03:00]} 10. O-O-O {[%emt 0:01:55]} b5 {[%emt 0:04:27]} 11. f4 {[%emt 0:04:37]} b4 {[%emt 0:20:41]} 12. Nd5 {[%emt 0:00:31]} Nxe4 {[%emt 0:10:16]} 13. Qxb4 {[%emt 0:01:49]} Nef6 {[%emt 0:10:39]} 14. Bc4 {[%emt 0:08:41]} Nxd5 {[%emt 0:13:57]} 15. Bxd5 {[%emt 0:00:16]} Bxd5 {[%emt 0:01:29]} 16. Rxd5 {[%emt 0:00:06]} Be7 {[%emt 0:13:11]} 17. Rhd1 {[%emt 0:20:14]} Qc7 {[%emt 0:02:59]} 18. fxe5 {[%emt 0:03:02]} Nxe5 {[%emt 0:00:08]} 19. Nd4 {[%emt 0:03:40]} g6 {[%emt 0:06:40]} 20. Nf3 {[%emt 0:08:05]} Nxf3 {[%emt 0:02:43]} 21. gxf3 {[%emt 0:00:02]} O-O {[%emt 0:00:27]} 22. Bd4 {[%emt 0:02:57]} Rfc8 {[%emt 0:00:42]} 23. Qd2 {[%emt 0:04:04]} Qc6 {[%emt 0:00:36]} 24. Bc3 {[%emt 0:00:28]} Bf8 {[%emt 0:00:20]} 25. Qd4 {[%emt 0:03:12]} f5 {[%emt 0:00:35]} 26. Qh8+ {[%emt 0:01:04]} Kf7 {[%emt 0:00:07]} 27. Qf6+ {[%emt 0:02:23]} Ke8 {[%emt 0:00:24]} 28. Re1+ {[%emt 0:00:45]} 1-0

[Event "42nd GRE-ch Women 2019"]
[Site "Thessaloniki"]
[Date "2019.11.25"]
[Round "6.1"]
[White "Hristodoulaki, Antonia"]
[Black "Serefidou, Despina"]
[Result "0-1"]
[ECO "C50"]
[WhiteElo "2054"]
[BlackElo "1899"]
[Annotator "NA RC"]
[PlyCount "118"]
[EventDate "2019.11.20"]
[EventType "tourn"]
[EventCountry "GRE"]
[SourceTitle "playchess.com"]
[Source "ChessBase"]
[SourceQuality "1"]
[TimeControl "40/5400+30:1800+30"]

1. e4 {[%emt 0:03:16]} e5 {[%emt 0:00:00]} 2. Nf3 {[%emt 0:00:04]} Nc6 {[%emt 0:00:14]} 3. Bc4 Nf6 {[%emt 0:01:59]} 4. d3 {[%emt 0:00:09]} Bc5 {[%emt 0:00:27]} 5. O-O {[%emt 0:00:33]} d6 {[%emt 0:07:13]} 6. a4 {[%emt 0:04:27]} a6 {[%emt 0:02:56] C50: Hungarian Defence and Giuoco Pianissimo} 7. c3 {[%emt 0:00:20]} Ba7 {[%emt 0:01:01]} 8. Re1 {[%emt 0:12:41]} h6 {[%emt 0:16:35]} 9. h3 {[%emt 0:06:12]} O-O {[%emt 0:02:16]} 10. a5 {[%emt 0:06:35]} (10. Nbd2 Re8 11. b4 Be6 12. Bxe6 Rxe6 13. Nf1 Qd7 14. Be3 Bxe3 15. Nxe3 d5 {1-0 (53) Vachier Lagrave,M (2774)-Aronian,L (2758) Khanty-Mansiysk 2019}) 10... Nh5 {[%emt 0:18:32]} 11. Be3 $146 {[%emt 0:21:56]} ({Predecessor:} 11. d4 Qf6 12. Be3 Nf4 13. Bf1 g5 {½-½ (39) Lehtinen,P (2248)-Miettinen,K (2342) ICCF email 2013}) 11... Qf6 {[%emt 0:14:36]} 12. Nh2 {[%emt 0:10:14]} Qg6 {[%emt 0:01:56]} 13. Kh1 {[%emt 0:00:39]} Bxe3 {[%emt 0:08:54]} 14. Rxe3 {[%emt 0:00:36]} Kh8 {[%emt 0:00:00]} 15. g4 {[%emt 0:08:20]} ({White should play} 15. Nd2 $15) 15... Nf4 {[%emt 0:01:04]} 16. Rg3 {[%emt 0:00:24]} Be6 {[%emt 0:09:32]} 17. Nd2 {[%emt 0:02:33]} d5 {[%emt 0:01:20]} ({Black should play} 17... Rfd8 $17 18. Qb3 Rab8 19. Bxe6 Qxe6 20. Qxe6 fxe6) 18. exd5 {[%emt 0:02:51]} Bxd5+ {[%emt 0:02:37]} 19. Bxd5 {[%emt 0:00:05]} Nxd5 {[%emt 0:00:00]} 20. Qf3 {[%emt 0:00:09]} (20. Ne4 $15) 20... Rad8 {[%emt 0:00:15]} 21. Nc4 {[%emt 0:02:03]} Qg5 {[%emt 0:06:28]} (21... f6 $17 22. Nf1 Nf4) 22. Qe4 {[%emt 0:04:03]} Qf4 {[%emt 0:01:55]} 23. Nf3 {[%emt 0:00:55]} Rfe8 {[%emt 0:00:53]} 24. Ng1 {[%emt 0:07:00]} (24. g5 $11) 24... Qxe4+ {[%emt 0:01:10]} 25. dxe4 {[%emt 0:00:02]} Nf4 {[%emt 0:00:00]} 26. Re1 {[%emt 0:01:12]} Nd3 {[%emt 0:00:28]} 27. Re2 {[%emt 0:00:54]} Nc1 {[%emt 0:00:27]} 28. Re1 {[%emt 0:02:13]} Nb3 {[%emt 0:00:04]} 29. Nf3 {[%emt 0:00:29]} f6 {[%emt 0:01:01]} 30. Nh4 {[%emt 0:00:52]} Ncxa5 {[%emt 0:00:26]} 31. Nxa5 {[%emt 0:00:49]} Nxa5 {[%emt 0:00:01]} 32. Rge3 {[%emt 0:00:44]} Rd2 {[%emt 0:00:48]} 33. R3e2 {[%emt 0:00:23]} Rxe2 {[%emt 0:00:20]} 34. Rxe2 {[%emt 0:00:01]} Rd8 {[%emt 0:00:33]} 35. Kg2 {[%emt 0:00:20]} Kg8 {[%emt 0:00:21]} 36. Nf3 {[%emt 0:01:27]} Nb3 {[%emt 0:00:42]} 37. Re1 {[%emt 0:00:24]} Kf7 {[%emt 0:00:27]} 38. h4 {[%emt 0:00:23]} Ke6 {[%emt 0:00:38]} 39. g5 {[%emt 0:01:00]} hxg5 {[%emt 0:00:11]} 40. hxg5 {[%emt 0:00:00]} a5 {[%emt 0:00:00]} 41. Rh1 {[%emt 0:01:36]} Nc5 {[%emt 0:03:55]} 42. Rh4 $19 {[%emt 0:06:41]} Nd3 {[%emt 0:05:19]} 43. b3 {[%emt 0:01:47]} Nf4+ {[%emt 0:00:48]} 44. Kg3 {[%emt 0:00:40]} Ne2+ {[%emt 0:01:00]} 45. Kg4 {[%emt 0:00:32]} Nxc3 {[%emt 0:00:48]} 46. Rh7 {[%emt 0:01:28]} Rd7 {[%emt 0:04:43]} 47. gxf6 {[%emt 0:01:42]} gxf6 {[%emt 0:00:07]} 48. Rxd7 {[%emt 0:00:15]} Kxd7 {[%emt 0:00:34]} 49. Kf5 {[%emt 0:00:05]} Ke7 {[%emt 0:02:12]} 50. Nd2 {[%emt 0:00:21]} b5 {[%emt 0:01:08]} 51. f4 {[%emt 0:00:55]} exf4 {[%emt 0:03:03]} 52. e5 {[%emt 0:00:34]} fxe5 {[%emt 0:02:12]} 53. Kxe5 Ne2 54. Ke4 Kd6 55. Kf3 Nc1 56. Kxf4 Kc5 57. Ke5 Kb4 58. Kd5 Nxb3 59. Kc6 Nxd2 0-1

[Event "42nd GRE-ch Women 2019"]
[Site "Thessaloniki"]
[Date "2019.11.25"]
[Round "6.3"]
[White "Stefanidi, Maria-Anna"]
[Black "Koutsidi, Amalia"]
[Result "1/2-1/2"]
[ECO "A00"]
[WhiteElo "2012"]
[BlackElo "1724"]
[Annotator "NA RC"]
[PlyCount "117"]
[EventDate "2019.11.20"]
[EventType "tourn"]
[EventCountry "GRE"]
[SourceTitle "playchess.com"]
[Source "ChessBase"]
[SourceQuality "1"]
[TimeControl "40/5400+30:1800+30"]

1. g3 {[%emt 0:00:00]} d5 {[%emt 0:02:04]} 2. Bg2 {[%emt 0:00:13]} Nf6 {[%emt 0:01:23]} 3. d3 {[%emt 0:00:47]} g6 {[%emt 0:07:44]} 4. Bg5 {[%emt 0:02:32]} Bg7 {[%emt 0:00:49]} 5. c3 {[%emt 0:00:15]} O-O {[%emt 0:01:48]} 6. Qd2 {[%emt 0:00:32]} c6 {[%emt 0:02:12]} 7. Na3 {[%emt 0:00:56]} e5 {[%emt 0:04:29]} 8. h4 {[%emt 0:07:08]} h5 {[%emt 0:14:14]} 9. O-O-O {[%emt 0:06:51]} b5 {[%emt 0:10:05]} 10. f4 {[%emt 0:02:02]} Qc7 {[%emt 0:09:08]} ({Better is} 10... exf4 $17 11. Qxf4 Nbd7) 11. e4 {[%emt 0:05:59]} (11. fxe5 $11 {remains equal.} Qxe5 12. Bf4) 11... dxe4 {[%emt 0:03:08]} 12. dxe4 {[%emt 0:04:06]} Be6 {[%emt 0:08:42]} 13. Kb1 {[%emt 0:02:02]} Na6 {[%emt 0:02:48]} 14. f5 {[%emt 0:15:21]} Rad8 {[%emt 0:13:04]} 15. Qc1 {[%emt 0:02:15]} (15. Qc2 $17 {was worth a try.} gxf5 16. Rxd8 Qxd8 17. exf5) 15... Bc4 $2 {[%emt 0:02:21]} (15... gxf5 $19 16. Bxf6 Bxf6) 16. Nxc4 {[%emt 0:04:38]} bxc4 {[%emt 0:00:13]} 17. Ne2 {[%emt 0:01:20]} Nc5 {[%emt 0:01:01]} 18. Bxf6 {[%emt 0:01:26]} Bxf6 {[%emt 0:00:07]} 19. g4 $2 {[%emt 0:03:12]} ({White should try} 19. fxg6 $15 fxg6 20. Rxd8 Rxd8 21. Qh6) 19... Nd3 {[%emt 0:01:38]} ({Don't take} 19... hxg4 20. Qh6) 20. Qe3 {[%emt 0:08:10] [#]} Qb6 $2 {[%emt 0:01:30]} ({Much less strong is} 20... hxg4 21. fxg6 fxg6 22. Nc1 $19) (20... Qb7 $1 $19 {[%csl Gd3][%cal Rb7b2][%mdl 512]} 21. Rd2 {[#]} Nf2 $1 {[%mdl 512]} 22. Rxd8 Rxd8) 21. Qxb6 {[%emt 0:00:37]} axb6 {[%emt 0:00:04]} 22. gxh5 {[%emt 0:00:54]} Nf2 {[%emt 0:04:23]} 23. Rxd8 {[%emt 0:01:44]} Rxd8 {[%emt 0:00:09]} 24. Rg1 {[%emt 0:08:22]} Bxh4 {[%emt 0:02:13]} ({Black should try} 24... gxh5 $17 25. Bf3+ Kf8) 25. hxg6 {[%emt 0:09:53]} fxg6 {[%emt 0:00:06]} 26. Nc1 {[%emt 0:06:25] [#]} g5 $1 {[%emt 0:03:08]} 27. Kc2 {[%emt 0:00:15]} (27. Bf3 $17) 27... Kg7 {[%emt 0:00:16]} 28. Bf3 {[%emt 0:01:18]} Kf6 {[%emt 0:00:39]} 29. b3 {[%emt 0:00:16]} cxb3+ {[%emt 0:00:08]} 30. axb3 {[%emt 0:00:18] [#]} Nh3 $2 {[%emt 0:00:37]} ({Black should try} 30... g4 $1 $19 {[%cal Rg4f3][%mdl 512]} 31. Bxg4 Rg8) 31. Rg2 {[%emt 0:01:34]} Nf4 {[%emt 0:00:20]} 32. Rd2 {[%emt 0:00:10]} Rxd2+ {[%emt 0:00:42]} 33. Kxd2 {[%emt 0:00:06]} Bf2 {[%emt 0:02:03]} 34. b4 {[%emt 0:01:24]} Bg1 {[%emt 0:02:04]} 35. Nb3 {[%emt 0:01:21]} Bh2 {[%emt 0:01:06]} 36. Ke1 {[%emt 0:01:27]} Bg3+ {[%emt 0:00:13]} 37. Kf1 {[%emt 0:00:15]} Nd3 {[%emt 0:00:49]} 38. Nd2 {[%emt 0:00:33]} Nb2 {[%emt 0:00:40]} 39. Ke2 {[%emt 0:01:14]} Na4 {[%emt 0:00:40]} 40. c4 {[%emt 0:00:00]} Nb2 {[%emt 0:00:00]} 41. c5 {[%emt 0:07:01]} bxc5 {[%emt 0:05:44]} 42. bxc5 {[%emt 0:00:22]} Na4 {[%emt 0:01:58]} 43. Nb3 {[%emt 0:00:15]} Nc3+ {[%emt 0:07:05]} 44. Kd3 {[%emt 0:05:07]} Nb5 {[%emt 0:00:33]} 45. Bh5 {[%emt 0:02:12]} Ke7 {[%emt 0:02:24]} 46. Be2 {[%emt 0:02:51]} Bf2 {[%emt 0:02:03]} 47. Bd1 {[%emt 0:01:13]} Nc7 {[%emt 0:07:43]} 48. Kc4 Na6 {[%emt 0:00:30]} 49. Bh5 Be3 {[%emt 0:00:30]} 50. Bg4 Kf6 {[%emt 0:00:30]} 51. Bf3 Bf2 {[%emt 0:00:30]} 52. Na5 Nxc5 {[%emt 0:00:30]} 53. Nxc6 g4 {[%emt 0:00:30]} 54. Bg2 g3 {[%emt 0:00:30]} 55. Nb4 Nd7 {[%emt 0:00:30]} 56. Kd5 Nb6+ {[%emt 0:00:30]} 57. Kc6 Nc4 {[%emt 0:00:30]} 58. Nd5+ $11 Kf7 {[%emt 0:00:30]} 59. Kd7 1/2-1/2